fUSD/lending_fUSD_20240630
["ID","MTS","AMOUNT","RATE_DAILY","PERIOD"]
[330756340,1719755543460,-353.436607,0.00014,2]
[330756341,1719755543469,-156.05448735,0.00014904,3]
[330756342,1719755543510,-662.74,0.00013698,2]
[330756343,1719755543531,-682.630285,0.00013698,2]
[330756344,1719755543540,-112.98341528,0.0001397,2]
[330756345,1719755543601,-19.00196457,0.00013808,3]
[330756346,1719755544064,-151.0,0.00013698,2]
[330756347,1719755544074,-353.436607,0.00013698,2]
[330756348,1719755544084,-725.46309838,0.00013799,2]
[330756349,1719755544118,-619.90718662,0.00013799,2]
[330756350,1719755544128,-231.24171338,0.00013808,3]
[330756351,1719755544211,-249.75632205,0.00013808,3]
[330756352,1719755544220,-1345.370285,0.00013808,2]
[330756353,1719755544230,-353.436607,0.00013808,2]
[330756354,1719755544240,-353.436607,0.00013808,2]
[330756355,1719755544249,-151.0,0.00013808,2]
[330756356,1719755544259,-151.0,0.00013808,2]
[330756357,1719755544269,-500.0,0.00013917,3]
[330756358,1719755544279,-1345.370285,0.00013917,2]
[330756359,1719755544288,-353.436607,0.00013917,2]
[330756360,1719755544297,-1345.370285,0.00013954,2]
[330756361,1719755544307,-353.436607,0.00013956,2]
[330756362,1719755544316,-87.01658472,0.0001397,2]
[330756363,1719755544326,-1069.0,0.0001397,2]
[330756364,1719755544335,-1345.370285,0.00013989,2]
[330756365,1719755544345,-353.436607,0.00014,2]
[330756366,1719755544355,-1345.370285,0.00014,2]
[330756367,1719755544365,-1345.370285,0.00014,2]
[330756368,1719755544375,-353.436607,0.00014027,2]
[330756369,1719755544384,-500.0,0.00014027,3]
[330756370,1719755544394,-353.436607,0.00014136,2]
[330756371,1719755544403,-340.97511537,0.00014136,3]
[330756372,1719755578761,215.63343809,0.00011199,2]
[330756378,1719755720159,151.0,0.00020469,120]
[330756395,1719756005127,717.57369311,0.00011199,2]
[330756398,1719756017068,493.11,0.0001088,2]
[330756448,1719756237129,716.79883307,0.00011199,2]
[330756451,1719756262193,151.0,0.00020469,120]
[330756469,1719756471303,156.04927212,0.00011199,2]
[330756475,1719756537948,497.47,0.00010758,2]
[330756478,1719756563158,-1751.6749,0.00012173,2]
[330756479,1719756563179,-442.30623662,0.00012273,2]
[330756480,1719756563198,-643.35526338,0.00012301,2]
[330756493,1719756633428,-204.50554,0.00012239,2]
[330756494,1719756633438,-803.64473662,0.00012301,2]
[330756495,1719756633448,-250.0,0.00012648,2]
[330756496,1719756633459,-680.0,0.00012768,2]
[330756497,1719756633469,-189.97,0.0001279,2]
[330756498,1719756633478,-1877.71355676,0.0001279,2]
[330756499,1719756633490,-600.0,0.0001279,2]
[330756500,1719756633566,-500.0,0.0001279,2]
[330756501,1719756633578,-448.96769024,0.0001279,2]
[330756502,1719756633588,-320.0,0.00012791,2]
[330756503,1719756633598,-871.92230976,0.00012822,2]
[330756517,1719756638549,-775.52645869,0.00012822,2]
[330756518,1719756638559,-9498.50821011,0.00012822,2]
[330756519,1719756638702,-852.71010381,0.00012822,2]
[330756520,1719756638715,-820.09,0.00012822,2]
[330756521,1719756638727,-483.66,0.00012822,2]
[330756522,1719756638740,-303.29325585,0.00012822,2]
[330756523,1719756638831,-532.07786788,0.00012822,2]
[330756531,1719756641020,-11409.66056235,0.00012822,2]
[330756532,1719756641030,-7884.3,0.00012822,2]
[330756533,1719756641040,-250.0,0.00012834,2]
[330756534,1719756641050,-1647.44876844,0.00012856,2]
[330756535,1719756641059,-290.96,0.00012971,2]
[330756536,1719756641069,-497.47,0.00013022,2]
[330756537,1719756641079,-499.99,0.00013144,2]
[330756538,1719756641088,-500.0,0.00013698,3]
[330756539,1719756641098,-500.0,0.00013698,3]
[330756540,1719756641108,-500.0,0.00013698,3]
[330756541,1719756641117,-500.0,0.00013698,3]
[330756542,1719756641127,-500.0,0.00013698,3]
[330756543,1719756641136,-500.0,0.00013698,3]
[330756544,1719756641145,-500.0,0.00013698,3]
[330756545,1719756641155,-500.0,0.00013698,3]
[330756546,1719756641164,-500.0,0.00013698,3]
[330756547,1719756641173,-500.0,0.00013698,3]
[330756548,1719756641184,-500.0,0.00013698,3]
[330756549,1719756641193,-500.0,0.00013698,3]
[330756550,1719756641203,-500.0,0.00013698,3]
[330756551,1719756641212,-500.0,0.00013698,3]
[330756552,1719756641221,-500.0,0.00013698,3]
[330756553,1719756641231,-500.0,0.00013698,3]
[330756554,1719756641240,-500.0,0.00013698,3]
[330756555,1719756641249,-500.0,0.00013698,3]
[330756556,1719756641259,-500.0,0.00013698,3]
[330756557,1719756641268,-500.0,0.00013698,3]
[330756558,1719756641277,-500.0,0.00013698,3]
[330756559,1719756641459,-500.0,0.00013698,3]
[330756560,1719756641533,-806.78,0.00013698,3]
[330756561,1719756641544,-500.0,0.00013698,3]
[330756562,1719756641554,-500.0,0.00013698,3]
[330756563,1719756641563,-500.0,0.00013698,3]
[330756564,1719756641574,-500.0,0.00013698,3]
[330756565,1719756641583,-500.0,0.00013698,3]
[330756566,1719756641593,-500.0,0.00013698,3]
[330756567,1719756641602,-500.0,0.00013698,3]
[330756568,1719756641611,-500.0,0.00013698,3]
[330756569,1719756641621,-500.0,0.00013698,3]
[330756570,1719756641630,-500.0,0.00013698,3]
[330756571,1719756641640,-500.0,0.00013698,3]
[330756572,1719756641649,-500.0,0.00013698,3]
[330756573,1719756641658,-2582.84,0.00013698,3]
[330756574,1719756641668,-500.0,0.00013698,3]
[330756575,1719756641677,-500.0,0.00013698,3]
[330756576,1719756641689,-500.0,0.00013698,3]
[330756577,1719756641699,-500.0,0.00013698,3]
[330756578,1719756641708,-500.0,0.00013698,3]
[330756579,1719756641718,-500.0,0.00013698,3]
[330756580,1719756641727,-500.0,0.00013698,3]
[330756581,1719756641736,-500.0,0.00013698,3]
[330756582,1719756641745,-500.0,0.00013698,3]
[330756583,1719756641755,-501.8,0.00013698,3]
[330756584,1719756641765,-500.0,0.00013698,3]
[330756585,1719756641774,-500.0,0.00013698,3]
[330756586,1719756641784,-500.0,0.00013698,3]
[330756587,1719756641793,-500.0,0.00013698,3]
[330756588,1719756641803,-500.0,0.00013698,3]
[330756589,1719756641812,-500.0,0.00013698,3]
[330756590,1719756641821,-500.0,0.00013698,3]
[330756591,1719756641831,-476.72,0.00013698,3]
[330756592,1719756641841,-500.0,0.00013698,3]
[330756593,1719756641850,-174.2,0.00013698,3]
[330756594,1719756641860,-500.0,0.00013698,3]
[330756595,1719756641870,-284.6,0.00013698,3]
[330756596,1719756641879,-500.0,0.00013698,3]
[330756597,1719756641888,-500.0,0.00013698,3]
[330756598,1719756641898,-500.0,0.00013698,3]
[330756599,1719756641907,-500.0,0.00013698,3]
[330756600,1719756641916,-500.0,0.00013698,3]
[330756601,1719756641925,-446.66,0.00013698,3]
[330756602,1719756641939,-500.0,0.00013698,3]
[330756603,1719756641948,-500.0,0.00013698,3]
[330756604,1719756641957,-500.0,0.00013698,3]
[330756605,1719756641967,-500.0,0.00013698,3]
[330756606,1719756641977,-500.0,0.00013698,3]
[330756607,1719756641987,-500.0,0.00013698,3]
[330756608,1719756641996,-500.0,0.00013698,3]
[330756609,1719756642006,-500.0,0.00013698,3]
[330756610,1719756642019,-500.0,0.00013698,3]
[330756611,1719756642030,-500.0,0.00013698,3]
[330756612,1719756642042,-500.0,0.00013698,3]
[330756613,1719756642052,-454.7,0.00013698,3]
[330756614,1719756642062,-500.0,0.00013698,3]
[330756615,1719756642073,-500.0,0.00013698,3]
[330756616,1719756642082,-500.0,0.00013698,3]
[330756617,1719756642091,-500.0,0.00013698,3]
[330756618,1719756642101,-500.0,0.00013698,3]
[330756619,1719756642112,-500.0,0.00013698,3]
[330756620,1719756642121,-500.0,0.00013698,3]
[330756621,1719756642132,-500.0,0.00013698,3]
[330756622,1719756642142,-500.0,0.00013698,3]
[330756623,1719756642152,-684.09,0.00013698,3]
[330756624,1719756642162,-500.0,0.00013698,3]
[330756625,1719756642171,-500.0,0.00013698,3]
[330756626,1719756642181,-500.0,0.00013698,3]
[330756627,1719756642190,-204.11,0.00013698,3]
[330756628,1719756642199,-500.0,0.00013698,3]
[330756629,1719756642208,-500.0,0.00013698,3]
[330756630,1719756642217,-500.0,0.00013698,3]
[330756631,1719756642227,-500.0,0.00013698,3]
[330756632,1719756642235,-500.0,0.00013698,3]
[330756633,1719756642246,-500.0,0.00013698,3]
[330756634,1719756642255,-500.0,0.00013698,3]
[330756635,1719756642266,-500.0,0.00013698,3]
[330756636,1719756642276,-500.0,0.00013698,3]
[330756637,1719756642287,-500.0,0.00013698,3]
[330756638,1719756642296,-500.0,0.00013698,3]
[330756639,1719756642306,-500.0,0.00013698,3]
[330756640,1719756642316,-621.11,0.00013698,3]
[330756641,1719756642326,-500.0,0.00013698,3]
[330756642,1719756642336,-500.0,0.00013698,3]
[330756643,1719756642346,-500.0,0.00013698,3]
[330756644,1719756642355,-500.0,0.00013698,3]
[330756645,1719756642365,-544.37,0.00013698,3]
[330756646,1719756642375,-500.0,0.00013698,3]
[330756647,1719756642385,-1550.2,0.00013698,3]
[330756648,1719756642396,-500.0,0.00013698,3]
[330756649,1719756642405,-500.0,0.00013698,3]
[330756650,1719756642415,-500.0,0.00013698,3]
[330756651,1719756642425,-500.0,0.00013698,3]
[330756652,1719756642436,-574.46,0.00013698,3]
[330756653,1719756642446,-500.0,0.00013698,3]
[330756654,1719756642455,-500.0,0.00013698,3]
[330756655,1719756642465,-500.0,0.00013698,3]
[330756656,1719756642474,-500.0,0.00013698,3]
[330756657,1719756642483,-500.0,0.00013698,3]
[330756658,1719756642493,-500.0,0.00013698,3]
[330756659,1719756642502,-500.0,0.00013698,3]
[330756660,1719756642512,-500.0,0.00013698,3]
[330756661,1719756642522,-500.0,0.00013698,3]
[330756662,1719756642531,-716.05,0.00013698,3]
[330756663,1719756642541,-500.0,0.00013698,3]
[330756664,1719756642550,-500.0,0.00013698,3]
[330756665,1719756642560,-500.0,0.00013698,3]
[330756666,1719756642570,-500.0,0.00013698,3]
[330756667,1719756642579,-575.22,0.00013698,3]
[330756668,1719756642588,-500.0,0.00013698,3]
[330756669,1719756642598,-500.0,0.00013698,3]
[330756670,1719756642607,-500.0,0.00013698,3]
[330756671,1719756642616,-472.94355365,0.00013698,3]
[330756672,1719756642630,-4289.77346451,0.00013698,3]
[330756673,1719756642642,-1531.51500001,0.00013698,3]
[330756737,1719756646637,-1118.70652312,0.00013698,3]
[330756738,1719756646648,-470.22347517,0.00013698,3]
[330756739,1719756646999,-581.02513369,0.00013698,3]
[330756740,1719756647011,-1543.757,0.00013698,3]
[330756741,1719756647023,-1412.70077183,0.00013698,3]
[330756742,1719756647036,-883.02211675,0.00013698,3]
[330756743,1719756647048,-1230.80296127,0.00013698,3]
[330756744,1719756647057,-500.0,0.00013698,3]
[330756745,1719756647067,-145.41676741,0.00013698,3]
[330756750,1719756675539,966.15,0.0001601,30]
[330756761,1719756874467,151.0,0.00020469,120]
[330756764,1719756919093,150.0,0.00011199,2]
[330756765,1719756919116,150.0,0.00011199,2]
[330756766,1719756919138,150.0,0.00011199,2]
[330756767,1719756919160,150.0,0.00011199,2]
[330756768,1719756919199,17630.54779869,0.00011199,2]
[330756780,1719756989859,450.0,0.00011199,2]
[330756781,1719757048435,4713.24960871,0.00011199,2]
[330756782,1719757077772,507.39,0.00010938,2]
[330756784,1719757103024,3713.98712066,0.00011199,2]
[330756789,1719757194239,3129.44435325,0.00011199,2]
[330756790,1719757202468,2829.95496021,0.00011199,2]
[330756791,1719757267404,2805.58754951,0.00011199,2]
[330756798,1719757395267,151.0,0.00020469,120]
[330756803,1719757545135,1266.19426831,0.00011199,2]
[330756806,1719757603163,-150.0,0.00012539,2]
[330756807,1719757603185,-48.68575683,0.00012639,2]
[330756809,1719757636482,151.0,0.00020469,120]
[330756812,1719757776087,519.86065789,0.00011199,2]
[330756814,1719757785746,482.02,0.00010588,2]
[330756815,1719757793195,24512.63692986,0.00011199,2]
[330756828,1719757832630,-4952.685598,0.0001224,2]
[330756829,1719757832641,-232.77,0.00012556,2]
[330756830,1719757832652,-552.62070963,0.00012572,2]
[330756831,1719757832663,-500.0,0.00012606,2]
[330756832,1719757832672,-250.0,0.00012623,2]
[330756833,1719757832683,-300.0,0.00012638,2]
[330756834,1719757832694,-4781.76722741,0.00012639,2]
[330756835,1719757832705,-4631.1,0.00012639,2]
[330756836,1719757832749,-364.67036088,0.00012639,2]
[330756837,1719757832761,-2015.05034501,0.00012639,2]
[330756838,1719757832772,-408.28683777,0.00012639,2]
[330756839,1719757832918,-10511.24858087,0.00012639,2]
[330756840,1719757832930,-1139.19089123,0.00012639,2]
[330756841,1719757832942,-236.9,0.00012664,2]
[330756842,1719757832952,-150.0,0.00012681,2]
[330756843,1719757832961,-250.0,0.00012754,2]
[330756844,1719757832970,-1275.70910877,0.00012754,2]
[330756845,1719757832982,-308.16089123,0.00012754,2]
[330756846,1719757832992,-456.0,0.00012763,2]
[330756847,1719757833001,-4390.74,0.00012763,2]
[330756848,1719757833011,-482.02,0.00012852,2]
[330756849,1719757833021,-161.54,0.00012869,2]
[330756850,1719757833035,-499.99,0.00012869,2]
[330756851,1719757833046,-1222.0,0.00012932,2]
[330756852,1719757833056,-31892.30548,0.00012999,2]
[330756853,1719757833066,-321.67,0.00012999,2]
[330756855,1719757833076,-536.4,0.00012999,2]
[330756857,1719757833087,-775.8,0.00013128,2]
[330756858,1719757833098,-365.10484834,0.00013574,2]
[330756859,1719757833108,-62401.2709,0.00013599,2]
[330756860,1719757833118,-2500.0,0.00013607,2]
[330756861,1719757833128,-198.44389797,0.00013659,2]
[330756862,1719757833138,-1000.0,0.00013698,2]
[330756863,1719757833148,-500.0,0.00013698,3]
[330756864,1719757833158,-500.0,0.00013698,3]
[330756865,1719757833168,-500.0,0.00013698,3]
[330756866,1719757833178,-500.0,0.00013698,3]
[330756867,1719757833188,-500.0,0.00013698,3]
[330756868,1719757833198,-500.0,0.00013698,3]
[330756869,1719757833208,-500.0,0.00013698,3]
[330756870,1719757833218,-500.0,0.00013698,3]
[330756871,1719757833228,-2475.22,0.00013698,3]
[330756872,1719757833238,-500.0,0.00013698,3]
[330756873,1719757833247,-500.0,0.00013698,3]
[330756874,1719757833257,-595.24,0.00013698,3]
[330756875,1719757833267,-500.0,0.00013698,3]
[330756876,1719757833276,-686.22,0.00013698,3]
[330756877,1719757833287,-500.0,0.00013698,3]
[330756878,1719757833296,-500.0,0.00013698,3]
[330756879,1719757833306,-500.0,0.00013698,3]
[330756880,1719757833315,-1113.67,0.00013698,3]
[330756881,1719757833325,-500.0,0.00013698,3]
[330756882,1719757833335,-364.12,0.00013699,2]
[330756883,1719757833344,-160.58,0.00013699,2]
[330756884,1719757833354,-1190.99,0.00013699,5]
[330756885,1719757833363,-1103.51,0.00013699,2]
[330756886,1719757833373,-1164.7747375,0.00013699,2]
[330756888,1719757837700,-500.0,0.00013698,3]
[330756891,1719757837710,-1690.69830545,0.00013699,2]
[330756893,1719757837722,-938.90308903,0.00013699,2]
[330756895,1719757837734,-1400.0,0.00013699,2]
[330756897,1719757837746,-4094.08136069,0.00013699,2]
[330756898,1719757837858,-2650.77506577,0.00013699,2]
[330756899,1719757837870,-362.26956143,0.00013699,2]
[330756900,1719757837883,-7698.48788013,0.00013699,2]
[330756901,1719757837894,-3415.89,0.00013699,2]
[330756902,1719757837906,-4419.25625995,0.00013699,2]
[330756903,1719757837917,-4095.98626351,0.00013699,2]
[330756904,1719757838003,-2033.01980657,0.00013699,2]
[330756905,1719757838055,-498.35828287,0.00013699,2]
[330756906,1719757838067,-552.62070963,0.00013699,2]
[330756907,1719757838079,-535.43603324,0.00013699,2]
[330756908,1719757838146,-408.03975593,0.00013699,2]
[330756914,1719757839857,-406.49830105,0.00013699,2]
[330756915,1719757839871,-274.7021428,0.00013699,2]
[330756916,1719757839884,-891.51412651,0.00013699,2]
[330756917,1719757840024,-3291.39065368,0.00013699,2]
[330756918,1719757840037,-4920.24766426,0.00013699,2]
[330756919,1719757840047,-8728.68,0.00013699,2]
[330756920,1719757840058,-668.9,0.000137,2]
[330756921,1719757840069,-668.9,0.000137,2]
[330756922,1719757840080,-668.9,0.000137,2]
[330756923,1719757840092,-257.37133574,0.00013706,3]
[330756924,1719757840106,-242.62866426,0.00013706,3]
[330756925,1719757840116,-587.25,0.00013706,3]
[330756926,1719757840127,-2847.17,0.00013706,3]
[330756927,1719757840139,-420.19,0.00013706,3]
[330756928,1719757840149,-559.82,0.00013706,3]
[330756929,1719757840160,-500.0,0.00013706,3]
[330756930,1719757840170,-887.77,0.00013706,3]
[330756931,1719757840182,-500.0,0.00013706,3]
[330756932,1719757840193,-500.0,0.00013706,3]
[330756933,1719757840203,-500.0,0.00013706,3]
[330756934,1719757840214,-500.0,0.00013706,3]
[330756935,1719757840225,-500.0,0.00013706,3]
[330756936,1719757840236,-500.0,0.00013706,3]
[330756937,1719757840246,-500.0,0.00013706,3]
[330756938,1719757840257,-500.0,0.00013706,3]
[330756939,1719757840268,-500.0,0.00013706,3]
[330756940,1719757840278,-500.0,0.00013706,3]
[330756941,1719757840289,-500.0,0.00013706,3]
[330756942,1719757840300,-500.0,0.00013706,3]
[330756943,1719757840310,-202.18123431,0.00013706,3]
[330756944,1719757840323,-297.81876569,0.00013706,3]
[330756945,1719757840334,-500.0,0.00013706,3]
[330756947,1719757840344,-500.0,0.00013706,3]
[330756949,1719757840355,-500.0,0.00013706,3]
[330756950,1719757840366,-500.0,0.00013706,3]
[330756951,1719757840376,-500.0,0.00013706,3]
[330756953,1719757840391,-500.0,0.00013706,3]
[330756955,1719757840402,-500.0,0.00013706,3]
[330756958,1719757840413,-500.0,0.00013706,3]
[330756960,1719757840423,-200.0,0.00013706,3]
[330756962,1719757840433,-500.0,0.00013706,3]
[330756963,1719757840444,-344.95,0.00013706,3]
[330756966,1719757840455,-500.0,0.00013706,3]
[330756968,1719757840467,-500.0,0.00013706,3]
[330756970,1719757840480,-500.0,0.00013706,3]
[330756972,1719757840491,-500.0,0.00013706,3]
[330756974,1719757840502,-500.0,0.00013706,3]
[330756976,1719757840513,-500.0,0.00013706,3]
[330756977,1719757840523,-500.0,0.00013706,3]
[330756978,1719757840533,-500.0,0.00013706,3]
[330756980,1719757840543,-98215.29296079,0.00013707,2]
[330756982,1719757840556,-1176.69046004,0.00013707,2]
[330756985,1719757840580,-463.48330418,0.00013707,2]
[330756987,1719757840593,-392.85540526,0.00013707,2]
[330756990,1719757840606,-40874.91738175,0.00013707,2]
[330756991,1719757840618,-2430.53542353,0.00013707,2]
[330756992,1719757840632,-99422.04916445,0.00013707,2]
[330756993,1719757840642,-7500.0,0.00013708,2]
[330756994,1719757840652,-1340.8218,0.0001371,2]
[330756995,1719757840663,-1424.15513,0.0001371,2]
[330756996,1719757840674,-505.6,0.00013775,2]
[330756997,1719757840684,-362.41073066,0.00013796,2]
[330756998,1719757840697,-306.48926934,0.00013796,2]
[330756999,1719757840708,-668.9,0.00013797,2]
[330757000,1719757840718,-902.28581909,0.00013799,2]
[330757001,1719757840728,-500.0,0.00013806,3]
[330757002,1719757840739,-500.0,0.00013806,3]
[330757003,1719757840750,-245.96,0.00013806,3]
[330757004,1719757840760,-500.0,0.00013806,3]
[330757005,1719757840771,-500.0,0.00013806,3]
[330757006,1719757840781,-500.0,0.00013806,3]
[330757007,1719757840792,-538.29,0.00013806,3]
[330757008,1719757840802,-500.0,0.00013806,3]
[330757009,1719757840812,-500.0,0.00013806,3]
[330757010,1719757840823,-500.0,0.00013806,3]
[330757011,1719757840833,-500.0,0.00013806,3]
[330757012,1719757840843,-500.0,0.00013806,3]
[330757013,1719757840854,-500.0,0.00013806,3]
[330757014,1719757840864,-500.0,0.00013806,3]
[330757015,1719757840874,-500.0,0.00013806,3]
[330757016,1719757840884,-500.0,0.00013806,3]
[330757017,1719757840894,-309.58,0.00013806,3]
[330757018,1719757840908,-500.0,0.00013806,3]
[330757019,1719757840919,-500.0,0.00013806,3]
[330757020,1719757840929,-500.0,0.00013806,3]
[330757021,1719757840940,-500.0,0.00013806,3]
[330757022,1719757840950,-500.0,0.00013806,3]
[330757023,1719757840960,-500.0,0.00013806,3]
[330757024,1719757840971,-500.0,0.00013806,3]
[330757025,1719757840981,-500.0,0.00013806,3]
[330757026,1719757840991,-500.0,0.00013806,3]
[330757027,1719757841002,-500.0,0.00013806,3]
[330757028,1719757841012,-258.96,0.00013806,3]
[330757029,1719757841022,-500.0,0.00013806,3]
[330757030,1719757841033,-500.0,0.00013806,3]
[330757031,1719757841043,-500.0,0.00013806,3]
[330757032,1719757841054,-500.0,0.00013806,3]
[330757033,1719757841064,-500.0,0.00013806,3]
[330757034,1719757841074,-445.31,0.00013806,3]
[330757035,1719757841085,-500.0,0.00013806,3]
[330757036,1719757841095,-500.0,0.00013806,3]
[330757037,1719757841105,-500.0,0.00013806,3]
[330757038,1719757841115,-500.0,0.00013806,3]
[330757039,1719757841125,-500.0,0.00013806,3]
[330757040,1719757841135,-500.0,0.00013806,3]
[330757041,1719757841145,-500.0,0.00013806,3]
[330757042,1719757841155,-509.56,0.00013806,3]
[330757043,1719757841166,-500.0,0.00013806,3]
[330757044,1719757841176,-500.0,0.00013806,3]
[330757045,1719757841187,-500.0,0.00013806,3]
[330757046,1719757841197,-500.0,0.00013806,3]
[330757047,1719757841207,-338.79,0.00013806,3]
[330757048,1719757841218,-500.0,0.00013806,3]
[330757049,1719757841228,-500.0,0.00013806,3]
[330757050,1719757841238,-500.0,0.00013806,3]
[330757051,1719757841252,-398.27,0.00013806,3]
[330757052,1719757841262,-500.0,0.00013806,3]
[330757053,1719757841272,-556.37,0.00013806,3]
[330757054,1719757841283,-500.0,0.00013806,3]
[330757055,1719757841294,-479.11,0.00013806,3]
[330757056,1719757841304,-500.0,0.00013806,3]
[330757057,1719757841314,-500.0,0.00013806,3]
[330757058,1719757841324,-458.16,0.00013806,3]
[330757059,1719757841335,-500.0,0.00013806,3]
[330757060,1719757841346,-500.0,0.00013806,3]
[330757061,1719757841357,-500.0,0.00013806,3]
[330757062,1719757841367,-500.0,0.00013806,3]
[330757063,1719757841378,-500.0,0.00013806,3]
[330757064,1719757841388,-500.0,0.00013806,3]
[330757065,1719757841399,-500.0,0.00013806,3]
[330757066,1719757841410,-500.0,0.00013806,3]
[330757067,1719757841420,-500.0,0.00013806,3]
[330757068,1719757841431,-500.0,0.00013806,3]
[330757069,1719757841443,-500.0,0.00013807,3]
[330757070,1719757841452,-773.16,0.00013807,3]
[330757071,1719757841463,-500.0,0.00013807,3]
[330757072,1719757841479,-500.0,0.00013807,3]
[330757073,1719757841489,-500.0,0.00013807,3]
[330757074,1719757841499,-500.0,0.00013807,3]
[330757075,1719757841510,-500.0,0.00013807,3]
[330757076,1719757841521,-500.0,0.00013807,3]
[330757077,1719757841531,-500.0,0.00013807,3]
[330757078,1719757841543,-500.0,0.00013807,3]
[330757079,1719757841554,-500.0,0.00013807,3]
[330757080,1719757841565,-500.0,0.00013807,3]
[330757081,1719757841575,-500.0,0.00013807,3]
[330757082,1719757841585,-243.98,0.00013807,3]
[330757083,1719757841595,-500.0,0.00013807,3]
[330757084,1719757841605,-500.0,0.00013807,3]
[330757085,1719757841615,-787.95,0.00013807,3]
[330757086,1719757841625,-500.0,0.00013807,3]
[330757087,1719757841635,-500.0,0.00013807,3]
[330757088,1719757841644,-500.0,0.00013807,3]
[330757089,1719757841654,-500.0,0.00013807,3]
[330757090,1719757841664,-500.0,0.00013807,3]
[330757091,1719757841674,-500.0,0.00013807,3]
[330757092,1719757841684,-500.0,0.00013807,3]
[330757093,1719757841695,-500.0,0.00013807,3]
[330757094,1719757841704,-500.0,0.00013807,3]
[330757095,1719757841713,-500.0,0.00013807,3]
[330757096,1719757841723,-500.0,0.00013807,3]
[330757097,1719757841733,-500.0,0.00013807,3]
[330757098,1719757841743,-500.0,0.00013807,3]
[330757099,1719757841753,-500.0,0.00013807,3]
[330757100,1719757841763,-500.0,0.00013807,3]
[330757101,1719757841774,-500.0,0.00013807,3]
[330757102,1719757841784,-500.0,0.00013807,3]
[330757103,1719757841794,-500.0,0.00013807,3]
[330757104,1719757841804,-763.08,0.00013807,3]
[330757105,1719757841814,-500.0,0.00013807,3]
[330757106,1719757841823,-500.0,0.00013807,3]
[330757107,1719757841833,-500.0,0.00013807,3]
[330757108,1719757841843,-500.0,0.00013807,3]
[330757109,1719757841853,-158.05,0.00013807,3]
[330757110,1719757841862,-500.0,0.00013807,3]
[330757111,1719757841872,-500.0,0.00013807,3]
[330757112,1719757841882,-500.0,0.00013807,3]
[330757113,1719757841892,-500.0,0.00013807,3]
[330757114,1719757841902,-500.0,0.00013807,3]
[330757115,1719757841912,-500.0,0.00013807,3]
[330757116,1719757841923,-500.0,0.00013807,3]
[330757117,1719757841942,-500.0,0.00013807,3]
[330757118,1719757841953,-500.0,0.00013807,3]
[330757119,1719757841963,-500.0,0.00013807,3]
[330757120,1719757841974,-500.0,0.00013807,3]
[330757121,1719757841984,-500.0,0.00013807,3]
[330757122,1719757841996,-384.14284352,0.00013807,3]
[330757123,1719757842006,-500.0,0.00013807,3]
[330757124,1719757842016,-500.0,0.00013807,3]
[330757125,1719757842026,-500.0,0.00013807,3]
[330757126,1719757842036,-500.0,0.00013807,3]
[330757127,1719757842046,-500.0,0.00013807,3]